[Event "Titled Tuesday Blitz May 9 Early 2023"]
[White "Mrudul Dehankar"]
[Black "Kejzar, Petra"]
[WhiteFideId "25096990"]
[BlackFideId "14610213"]
[WhiteElo "2139"]
[BlackElo "2089"]
[Result "1-0"]
[Round "04"]
[TimeControl "180+2"]
[Date "2023.05.09"]
[WhiteClock "0:00:13"]
[BlackClock "0:00:20"]

1. e4 {[%clk 0:02:56]}  e5 {[%clk 0:03:00]} 2. Nf3 {[%clk 0:02:56]}  Nc6 {[%clk 0:03:00]} 3. Bb5 {[%clk 0:02:56]}  a6 {[%clk 0:03:01]} 4. Ba4 {[%clk 0:02:57]}  Bc5 {[%clk 0:03:01]} 5. c3 {[%clk 0:02:55]}  Nge7 {[%clk 0:03:01]} 6. O-O {[%clk 0:02:53]}  Ng6 {[%clk 0:02:59]} 7. d4 {[%clk 0:02:53]}  exd4 {[%clk 0:02:59]} 8. cxd4 {[%clk 0:02:52]}  Ba7 {[%clk 0:02:59]} 9. Nc3 {[%clk 0:02:50]}  O-O {[%clk 0:02:59]} 10. Bg5 {[%clk 0:02:12]}  f6 {[%clk 0:02:58]} 11. Be3 {[%clk 0:02:09]}  d6 {[%clk 0:02:58]} 12. h3 {[%clk 0:02:02]}  Kh8 {[%clk 0:02:58]} 13. Bc2 {[%clk 0:01:57]}  Nce7 {[%clk 0:02:57]} 14. Rc1 {[%clk 0:01:51]}  Be6 {[%clk 0:02:57]} 15. Nd2 {[%clk 0:01:45]}  f5 {[%clk 0:02:49]} 16. d5 {[%clk 0:01:35]}  Bd7 {[%clk 0:02:48]} 17. Bxa7 {[%clk 0:01:31]}  Rxa7 {[%clk 0:02:49]} 18. Nf3 {[%clk 0:01:26]}  f4 {[%clk 0:02:36]} 19. Qd4 {[%clk 0:01:19]}  Ra8 {[%clk 0:02:34]} 20. Rfe1 {[%clk 0:01:09]}  Ne5 {[%clk 0:02:25]} 21. Nxe5 {[%clk 0:01:03]}  dxe5 {[%clk 0:02:26]} 22. Qxe5 {[%clk 0:01:01]}  Ng6 {[%clk 0:02:25]} 23. Qh5 {[%clk 0:00:57]}  f3 {[%clk 0:02:21]} 24. e5 {[%clk 0:00:54]}  Be8 {[%clk 0:02:08]} 25. g3 {[%clk 0:00:44]}  Kg8 {[%clk 0:01:46]} 26. Rcd1 {[%clk 0:00:35]}  Qd7 {[%clk 0:01:39]} 27. d6 {[%clk 0:00:19]}  Qe6 {[%clk 0:01:34]} 28. Bb3 {[%clk 0:00:18]}  Qxb3 {[%clk 0:01:30]} 29. axb3 {[%clk 0:00:18]}  cxd6 {[%clk 0:01:29]} 30. exd6 {[%clk 0:00:18]}  Rd8 {[%clk 0:01:26]} 31. Qd5+ {[%clk 0:00:17]}  Kh8 {[%clk 0:01:26]} 32. Ne4 {[%clk 0:00:17]}  Bc6 {[%clk 0:01:25]} 33. Qh5 {[%clk 0:00:17]}  Bxe4 {[%clk 0:01:03]} 34. Rxe4 {[%clk 0:00:16]}  Rf6 {[%clk 0:01:03]} 35. d7 {[%clk 0:00:16]}  Rff8 {[%clk 0:00:34]} 36. Qg5 {[%clk 0:00:13]}  b5 {[%clk 0:00:24]} 37. h4 {[%clk 0:00:13]}  Rg8 {[%clk 0:00:16]} 38. Qxd8 {[%clk 0:00:13]}  Rxd8 {[%clk 0:00:16]} 39. Re8+ {[%clk 0:00:14]}  Nf8 {[%clk 0:00:16]} 40. Rxd8 {[%clk 0:00:14]}  Kg8 {[%clk 0:00:17]} 41. Rxf8+ {[%clk 0:00:15]}  Kxf8 {[%clk 0:00:17]} 42. d8=Q+ {[%clk 0:00:15]}  Kf7 {[%clk 0:00:18]} 43. Rd7+ {[%clk 0:00:15]}  Kg6 {[%clk 0:00:19]} 44. Qe8+ {[%clk 0:00:15]}  Kh6 {[%clk 0:00:19]} 45. Rd6+ {[%clk 0:00:15]}  g6 {[%clk 0:00:20]} 46. Qf8+ {[%clk 0:00:15]}  Kh5 {[%clk 0:00:20]} 47. Rd5+ {[%clk 0:00:16]}  Kg4 {[%clk 0:00:21]} 48. Kh2 {[%clk 0:00:14]}  g5 {[%clk 0:00:20]} 49. Rxg5# {[%clk 0:00:13]} 1-0


[Site "https://www.chess.com"]

[Event "Titled Tuesday Blitz May 9 Early 2023"]
[White "Tarasova, Viktoriya"]
[Black "Rostomyan, Mikayel"]
[WhiteFideId "4175840"]
[BlackFideId "13313754"]
[WhiteElo "2182"]
[BlackElo "2061"]
[Result "0-1"]
[Round "04"]
[TimeControl "180+2"]
[Date "2023.05.09"]
[WhiteClock "0:00:09"]
[BlackClock "0:00:08"]

1. d4 {[%clk 0:03:00]}  Nf6 {[%clk 0:02:56]} 2. c4 {[%clk 0:03:00]}  c5 {[%clk 0:02:55]} 3. d5 {[%clk 0:03:00]}  b5 {[%clk 0:02:54]} 4. cxb5 {[%clk 0:02:59]}  a6 {[%clk 0:02:52]} 5. bxa6 {[%clk 0:03:00]}  e6 {[%clk 0:02:49]} 6. Nc3 {[%clk 0:02:57]}  exd5 {[%clk 0:02:48]} 7. Nxd5 {[%clk 0:02:57]}  Nxa6 {[%clk 0:02:49]} 8. Nf3 {[%clk 0:02:52]}  Bb7 {[%clk 0:02:47]} 9. e4 {[%clk 0:02:38]}  Nxe4 {[%clk 0:02:40]} 10. Bc4 {[%clk 0:02:35]}  Qa5+ {[%clk 0:02:26]} 11. Nd2 {[%clk 0:02:28]}  Nc7 {[%clk 0:02:10]} 12. O-O {[%clk 0:02:09]}  Bxd5 {[%clk 0:01:32]} 13. Bxd5 {[%clk 0:02:04]}  Nxd5 {[%clk 0:01:33]} 14. Nxe4 {[%clk 0:02:02]}  Nc7 {[%clk 0:01:33]} 15. Bf4 {[%clk 0:01:56]}  Ne6 {[%clk 0:01:28]} 16. Bd6 {[%clk 0:01:51]}  Qa4 {[%clk 0:01:18]} 17. Qd5 {[%clk 0:01:32]}  Qc6 {[%clk 0:00:58]} 18. Qe5 {[%clk 0:01:13]}  f6 {[%clk 0:00:38]} 19. Qg3 {[%clk 0:00:48]}  Qxe4 {[%clk 0:00:34]} 20. Rfe1 {[%clk 0:00:41]}  Qc6 {[%clk 0:00:25]} 21. Bxf8 {[%clk 0:00:41]}  Kxf8 {[%clk 0:00:25]} 22. Rad1 {[%clk 0:00:39]}  Re8 {[%clk 0:00:21]} 23. Rd6 {[%clk 0:00:39]}  Qb7 {[%clk 0:00:16]} 24. Qd3 {[%clk 0:00:36]}  Re7 {[%clk 0:00:12]} 25. Rd1 {[%clk 0:00:29]}  Kf7 {[%clk 0:00:10]} 26. Rxd7 {[%clk 0:00:28]}  Rxd7 {[%clk 0:00:10]} 27. Qxd7+ {[%clk 0:00:28]}  Qxd7 {[%clk 0:00:11]} 28. Rxd7+ {[%clk 0:00:29]}  Kg6 {[%clk 0:00:11]} 29. Rd6 {[%clk 0:00:26]}  Re8 {[%clk 0:00:09]} 30. f3 {[%clk 0:00:26]}  Nd4 {[%clk 0:00:09]} 31. Rd5 {[%clk 0:00:25]}  Re1+ {[%clk 0:00:09]} 32. Kf2 {[%clk 0:00:25]}  Re2+ {[%clk 0:00:10]} 33. Kg3 {[%clk 0:00:25]}  Rxb2 {[%clk 0:00:11]} 34. Rxc5 {[%clk 0:00:25]}  Nf5+ {[%clk 0:00:09]} 35. Kh3 {[%clk 0:00:24]}  Rxa2 {[%clk 0:00:09]} 36. g4 {[%clk 0:00:23]}  Ne3 {[%clk 0:00:09]} 37. Rc1 {[%clk 0:00:17]}  Nd5 {[%clk 0:00:09]} 38. Kg3 {[%clk 0:00:17]}  Ra4 {[%clk 0:00:09]} 39. h4 {[%clk 0:00:17]}  Kf7 {[%clk 0:00:08]} 40. Rc5 {[%clk 0:00:15]}  Ne7 {[%clk 0:00:08]} 41. Rc7 {[%clk 0:00:16]}  Rd4 {[%clk 0:00:08]} 42. h5 {[%clk 0:00:16]}  h6 {[%clk 0:00:08]} 43. Kf2 {[%clk 0:00:16]}  Rd5 {[%clk 0:00:08]} 44. Ke3 {[%clk 0:00:16]}  f5 {[%clk 0:00:09]} 45. Kf4 {[%clk 0:00:15]}  fxg4 {[%clk 0:00:09]} 46. fxg4 {[%clk 0:00:16]}  Kf6 {[%clk 0:00:09]} 47. Kg3 {[%clk 0:00:16]}  Rd3+ {[%clk 0:00:09]} 48. Kh4 {[%clk 0:00:16]}  Rd6 {[%clk 0:00:10]} 49. Rc3 {[%clk 0:00:15]}  Nd5 {[%clk 0:00:10]} 50. Rf3+ {[%clk 0:00:16]}  Ke6 {[%clk 0:00:11]} 51. g5 {[%clk 0:00:16]}  Ke7 {[%clk 0:00:09]} 52. gxh6 {[%clk 0:00:15]}  gxh6 {[%clk 0:00:09]} 53. Rg3 {[%clk 0:00:15]}  Kf7 {[%clk 0:00:09]} 54. Rf3+ {[%clk 0:00:15]}  Nf6 {[%clk 0:00:09]} 55. Rf1 {[%clk 0:00:14]}  Rd5 {[%clk 0:00:10]} 56. Kg3 {[%clk 0:00:13]}  Rxh5 {[%clk 0:00:10]} 57. Ra1 {[%clk 0:00:13]}  Rg5+ {[%clk 0:00:10]} 58. Kh4 {[%clk 0:00:13]}  Kg6 {[%clk 0:00:11]} 59. Ra6 {[%clk 0:00:13]}  Rc5 {[%clk 0:00:10]} 60. Ra8 {[%clk 0:00:13]}  Rc4+ {[%clk 0:00:10]} 61. Kh3 {[%clk 0:00:13]}  Kf5 {[%clk 0:00:08]} 62. Rf8 {[%clk 0:00:13]}  h5 {[%clk 0:00:09]} 63. Rf7 {[%clk 0:00:12]}  Kg6 {[%clk 0:00:08]} 64. Rf8 {[%clk 0:00:12]}  Kg5 {[%clk 0:00:09]} 65. Rf7 {[%clk 0:00:12]}  Rc3+ {[%clk 0:00:09]} 66. Kh2 {[%clk 0:00:12]}  Ng4+ {[%clk 0:00:09]} 67. Kg2 {[%clk 0:00:12]}  Kh4 {[%clk 0:00:08]} 68. Rf8 {[%clk 0:00:11]}  Rc2+ {[%clk 0:00:09]} 69. Kg1 {[%clk 0:00:12]}  Kg3 {[%clk 0:00:08]} 70. Ra8 {[%clk 0:00:09]}  Rc1# {[%clk 0:00:08]} 0-1


[Site "https://www.chess.com"]

[Event "Titled Tuesday Blitz May 9 Early 2023"]
[White "Pasti, Aron"]
[Black "Kim, Sergey"]
[WhiteFideId "785857"]
[BlackFideId "13700570"]
[WhiteElo "2173"]
[BlackElo "2605"]
[Result "0-1"]
[Round "04"]
[TimeControl "180+2"]
[Date "2023.05.09"]
[WhiteClock "0:00:00"]
[BlackClock "0:00:10"]

1. e4 {[%clk 0:03:00]}  e5 {[%clk 0:02:59]} 2. Nf3 {[%clk 0:02:58]}  Nc6 {[%clk 0:02:59]} 3. Bb5 {[%clk 0:02:58]}  a6 {[%clk 0:03:00]} 4. Ba4 {[%clk 0:02:58]}  Nf6 {[%clk 0:03:00]} 5. O-O {[%clk 0:02:59]}  b5 {[%clk 0:03:00]} 6. Bb3 {[%clk 0:02:59]}  Bc5 {[%clk 0:03:00]} 7. c3 {[%clk 0:02:59]}  d6 {[%clk 0:03:01]} 8. d4 {[%clk 0:02:59]}  Bb6 {[%clk 0:03:00]} 9. a4 {[%clk 0:02:59]}  Bb7 {[%clk 0:02:59]} 10. a5 {[%clk 0:03:00]}  Ba7 {[%clk 0:02:58]} 11. Be3 {[%clk 0:02:44]}  O-O {[%clk 0:02:57]} 12. Nbd2 {[%clk 0:02:44]}  h6 {[%clk 0:02:55]} 13. h3 {[%clk 0:02:44]}  Re8 {[%clk 0:02:54]} 14. Re1 {[%clk 0:02:38]}  exd4 {[%clk 0:02:48]} 15. cxd4 {[%clk 0:02:31]}  Nb4 {[%clk 0:02:40]} 16. e5 {[%clk 0:02:23]}  Nfd5 {[%clk 0:02:38]} 17. Nf1 {[%clk 0:02:07]}  c5 {[%clk 0:02:18]} 18. dxc5 {[%clk 0:01:46]}  dxc5 {[%clk 0:02:18]} 19. Bd2 {[%clk 0:01:33]}  Nd3 {[%clk 0:02:03]} 20. Re2 {[%clk 0:01:13]}  c4 {[%clk 0:01:44]} 21. Bc2 {[%clk 0:01:10]}  N5f4 {[%clk 0:01:42]} 22. Bxf4 {[%clk 0:01:09]}  Nxf4 {[%clk 0:01:41]} 23. Rd2 {[%clk 0:01:09]}  Qc8 {[%clk 0:01:31]} 24. Ng3 {[%clk 0:01:02]}  Nxh3+ {[%clk 0:01:08]} 25. gxh3 {[%clk 0:01:02]}  Qxh3 {[%clk 0:01:09]} 26. Ne4 {[%clk 0:00:30]}  Qg4+ {[%clk 0:01:02]} 27. Kf1 {[%clk 0:00:24]}  Bxe4 {[%clk 0:01:00]} 28. Bxe4 {[%clk 0:00:22]}  Qxe4 {[%clk 0:01:00]} 29. Rd7 {[%clk 0:00:22]}  Qf5 {[%clk 0:00:50]} 30. Qd5 {[%clk 0:00:19]}  Qh3+ {[%clk 0:00:33]} 31. Ke2 {[%clk 0:00:19]}  Qe6 {[%clk 0:00:30]} 32. Rd1 {[%clk 0:00:15]}  Qxd5 {[%clk 0:00:24]} 33. R1xd5 {[%clk 0:00:16]}  Bb8 {[%clk 0:00:19]} 34. Kf1 {[%clk 0:00:13]}  Ra7 {[%clk 0:00:19]} 35. Rxa7 {[%clk 0:00:12]}  Bxa7 {[%clk 0:00:19]} 36. Rd6 {[%clk 0:00:10]}  Re6 {[%clk 0:00:19]} 37. Rd8+ {[%clk 0:00:10]}  Kh7 {[%clk 0:00:19]} 38. Rd7 {[%clk 0:00:11]}  Bc5 {[%clk 0:00:18]} 39. Rxf7 {[%clk 0:00:09]}  Rc6 {[%clk 0:00:18]} 40. Nh4 {[%clk 0:00:07]}  Kg8 {[%clk 0:00:16]} 41. Rd7 {[%clk 0:00:06]}  b4 {[%clk 0:00:14]} 42. Nf5 {[%clk 0:00:04]}  c3 {[%clk 0:00:14]} 43. bxc3 {[%clk 0:00:04]}  bxc3 {[%clk 0:00:14]} 44. Rxg7+ {[%clk 0:00:05]}  Kf8 {[%clk 0:00:14]} 45. Rg3 {[%clk 0:00:05]}  Bb4 {[%clk 0:00:13]} 46. e6 {[%clk 0:00:03]}  c2 {[%clk 0:00:11]} 47. e7+ {[%clk 0:00:00]}  Bxe7 {[%clk 0:00:10]} 0-1


[Site "https://www.chess.com"]

[Event "Titled Tuesday Blitz May 9 Early 2023"]
[White "Mika, Tomasz"]
[Black "Sourath Biswas"]
[WhiteFideId "1132970"]
[BlackFideId "35091484"]
[WhiteElo "2179"]
[BlackElo "2171"]
[Result "0-1"]
[Round "04"]
[TimeControl "180+2"]
[Date "2023.05.09"]
[WhiteClock "0:00:02"]
[BlackClock "0:00:42"]

1. d4 {[%clk 0:02:55]}  Nf6 {[%clk 0:03:00]} 2. Bf4 {[%clk 0:02:54]}  d5 {[%clk 0:02:59]} 3. Nf3 {[%clk 0:02:53]}  c5 {[%clk 0:02:59]} 4. e3 {[%clk 0:02:53]}  Nc6 {[%clk 0:02:54]} 5. Nbd2 {[%clk 0:02:52]}  Qb6 {[%clk 0:02:49]} 6. dxc5 {[%clk 0:02:49]}  Qxb2 {[%clk 0:02:50]} 7. Rb1 {[%clk 0:02:40]}  Qc3 {[%clk 0:02:50]} 8. Bb5 {[%clk 0:02:34]}  g6 {[%clk 0:02:49]} 9. e4 {[%clk 0:02:22]}  Bg7 {[%clk 0:02:34]} 10. Be5 {[%clk 0:01:59]}  Qa5 {[%clk 0:02:34]} 11. exd5 {[%clk 0:01:45]}  a6 {[%clk 0:02:34]} 12. dxc6 {[%clk 0:00:52]}  axb5 {[%clk 0:02:33]} 13. cxb7 {[%clk 0:00:45]}  Bxb7 {[%clk 0:02:34]} 14. O-O {[%clk 0:00:44]}  O-O {[%clk 0:02:34]} 15. Nc4 {[%clk 0:00:36]}  Bxf3 {[%clk 0:02:27]} 16. Nxa5 {[%clk 0:00:29]}  Bxd1 {[%clk 0:02:27]} 17. Nc6 {[%clk 0:00:30]}  Bxc2 {[%clk 0:02:27]} 18. Nxe7+ {[%clk 0:00:30]}  Kh8 {[%clk 0:02:27]} 19. Rb2 {[%clk 0:00:20]}  Bd3 {[%clk 0:02:27]} 20. Rd1 {[%clk 0:00:19]}  Rfe8 {[%clk 0:02:24]} 21. Bd6 {[%clk 0:00:12]}  Ne4 {[%clk 0:02:20]} 22. Rb3 {[%clk 0:00:10]}  Bc4 {[%clk 0:02:19]} 23. Re3 {[%clk 0:00:09]}  Nc3 {[%clk 0:02:10]} 24. Rde1 {[%clk 0:00:05]}  Be6 {[%clk 0:01:49]} 25. c6 {[%clk 0:00:05]}  Ra6 {[%clk 0:01:36]} 26. a3 {[%clk 0:00:03]}  Bf6 {[%clk 0:01:19]} 27. c7 {[%clk 0:00:03]}  Rxd6 {[%clk 0:01:17]} 28. c8=Q {[%clk 0:00:02]}  Rxc8 {[%clk 0:00:58]} 29. Nxc8 {[%clk 0:00:03]}  Ra6 {[%clk 0:00:50]} 30. Rxc3 {[%clk 0:00:01]}  Bxc3 {[%clk 0:00:50]} 31. Rc1 {[%clk 0:00:01]}  Bb2 {[%clk 0:00:42]} 32. Rd1 {[%clk 0:00:02]} 0-1


[Site "https://www.chess.com"]

[Event "Titled Tuesday Blitz May 9 Early 2023"]
[White "Gontcharov, Vladislav"]
[Black "Mazurkiewicz, Michal"]
[WhiteFideId "4123492"]
[BlackFideId "1124943"]
[WhiteElo "2420"]
[BlackElo "2054"]
[Result "1-0"]
[Round "04"]
[TimeControl "180+2"]
[Date "2023.05.09"]
[WhiteClock "0:01:07"]
[BlackClock "0:00:00"]

1. d4 {[%clk 0:03:00]}  Nf6 {[%clk 0:02:53]} 2. c4 {[%clk 0:03:00]}  e5 {[%clk 0:02:52]} 3. dxe5 {[%clk 0:02:58]}  Ng4 {[%clk 0:02:52]} 4. Nf3 {[%clk 0:02:58]}  Bc5 {[%clk 0:02:52]} 5. e3 {[%clk 0:02:58]}  Nc6 {[%clk 0:02:51]} 6. Nc3 {[%clk 0:02:56]}  O-O {[%clk 0:02:51]} 7. Bd3 {[%clk 0:02:56]}  Re8 {[%clk 0:02:51]} 8. O-O {[%clk 0:02:52]}  Ncxe5 {[%clk 0:02:39]} 9. Nxe5 {[%clk 0:02:52]}  Nxe5 {[%clk 0:02:40]} 10. Be2 {[%clk 0:02:52]}  a5 {[%clk 0:02:34]} 11. b3 {[%clk 0:02:51]}  Ra6 {[%clk 0:02:12]} 12. Bb2 {[%clk 0:02:35]}  Rh6 {[%clk 0:02:11]} 13. g3 {[%clk 0:02:26]}  d6 {[%clk 0:01:55]} 14. Na4 {[%clk 0:02:04]}  Ba7 {[%clk 0:01:52]} 15. Bd4 {[%clk 0:02:02]}  Bxd4 {[%clk 0:01:50]} 16. exd4 {[%clk 0:02:02]}  Nc6 {[%clk 0:01:45]} 17. d5 {[%clk 0:01:50]}  Ne5 {[%clk 0:01:39]} 18. f4 {[%clk 0:01:49]}  Ng6 {[%clk 0:01:21]} 19. Qd2 {[%clk 0:01:47]}  b6 {[%clk 0:01:20]} 20. Rfe1 {[%clk 0:01:38]}  Bd7 {[%clk 0:00:25]} 21. Nc3 {[%clk 0:01:37]}  Ne7 {[%clk 0:00:12]} 22. Bd3 {[%clk 0:01:29]}  Rf8 {[%clk 0:00:12]} 23. Re3 {[%clk 0:01:24]}  Nf5 {[%clk 0:00:12]} 24. Bxf5 {[%clk 0:01:24]}  Bxf5 {[%clk 0:00:13]} 25. Rae1 {[%clk 0:01:23]}  Qc8 {[%clk 0:00:14]} 26. Ne2 {[%clk 0:01:21]}  Bg4 {[%clk 0:00:14]} 27. Nd4 {[%clk 0:01:21]}  Bh5 {[%clk 0:00:13]} 28. Re7 {[%clk 0:01:20]}  Qh3 {[%clk 0:00:13]} 29. Qg2 {[%clk 0:01:17]}  Qg4 {[%clk 0:00:12]} 30. h3 {[%clk 0:01:11]}  Qc8 {[%clk 0:00:11]} 31. g4 {[%clk 0:01:12]}  Bg6 {[%clk 0:00:11]} 32. f5 {[%clk 0:01:12]}  Kh8 {[%clk 0:00:05]} 33. fxg6 {[%clk 0:01:10]}  fxg6 {[%clk 0:00:03]} 34. Ne6 {[%clk 0:01:08]}  Rg8 {[%clk 0:00:00]} 35. Rxc7 {[%clk 0:01:07]} 1-0


[Site "https://www.chess.com"]

[Event "Titled Tuesday Blitz May 9 Early 2023"]
[White "Shaik Sumer Arsh"]
[Black "Gvanceladze, Anna"]
[WhiteFideId "45020000"]
[BlackFideId "4113721"]
[WhiteElo "2350"]
[BlackElo "2025"]
[Result "1-0"]
[Round "04"]
[TimeControl "180+2"]
[Date "2023.05.09"]
[WhiteClock "0:00:37"]
[BlackClock "0:00:00"]

1. d4 {[%clk 0:03:00]}  d5 {[%clk 0:02:59]} 2. c4 {[%clk 0:02:59]}  c6 {[%clk 0:02:59]} 3. Nc3 {[%clk 0:02:59]}  Nf6 {[%clk 0:03:00]} 4. cxd5 {[%clk 0:02:59]}  cxd5 {[%clk 0:03:00]} 5. Bf4 {[%clk 0:03:00]}  Nc6 {[%clk 0:03:00]} 6. e3 {[%clk 0:03:01]}  a6 {[%clk 0:03:00]} 7. Be2 {[%clk 0:03:01]}  Bf5 {[%clk 0:03:00]} 8. Nf3 {[%clk 0:02:59]}  e6 {[%clk 0:02:59]} 9. Qb3 {[%clk 0:02:59]}  Bb4 {[%clk 0:02:51]} 10. Ne5 {[%clk 0:02:54]}  Bxc3+ {[%clk 0:02:39]} 11. bxc3 {[%clk 0:02:44]}  Nxe5 {[%clk 0:02:39]} 12. Bxe5 {[%clk 0:02:44]}  Ra7 {[%clk 0:02:08]} 13. O-O {[%clk 0:02:42]}  O-O {[%clk 0:02:06]} 14. a4 {[%clk 0:02:34]}  Ne4 {[%clk 0:02:05]} 15. Rfd1 {[%clk 0:02:28]}  f6 {[%clk 0:02:00]} 16. Bf4 {[%clk 0:02:27]}  g5 {[%clk 0:02:00]} 17. Bg3 {[%clk 0:02:28]}  Qa5 {[%clk 0:01:44]} 18. Rac1 {[%clk 0:02:22]}  Rc8 {[%clk 0:01:41]} 19. c4 {[%clk 0:02:21]}  b5 {[%clk 0:01:04]} 20. axb5 {[%clk 0:01:50]}  axb5 {[%clk 0:01:04]} 21. cxd5 {[%clk 0:01:51]}  Rxc1 {[%clk 0:01:04]} 22. Rxc1 {[%clk 0:01:48]}  Nd2 {[%clk 0:00:55]} 23. Qxb5 {[%clk 0:01:28]}  exd5 {[%clk 0:00:49]} 24. Qe8+ {[%clk 0:01:21]}  Kg7 {[%clk 0:00:50]} 25. h4 {[%clk 0:01:22]}  Ne4 {[%clk 0:00:44]} 26. hxg5 {[%clk 0:01:21]}  Nxg5 {[%clk 0:00:33]} 27. Bd6 {[%clk 0:01:06]}  Rf7 {[%clk 0:00:24]} 28. Bh5 {[%clk 0:01:04]}  Bg6 {[%clk 0:00:23]} 29. Bxg6 {[%clk 0:01:02]}  hxg6 {[%clk 0:00:24]} 30. Rc8 {[%clk 0:01:00]}  Qe1+ {[%clk 0:00:17]} 31. Kh2 {[%clk 0:01:01]}  Kh6 {[%clk 0:00:16]} 32. Qh8+ {[%clk 0:00:50]}  Rh7 {[%clk 0:00:15]} 33. Qxf6 {[%clk 0:00:50]}  Qe2 {[%clk 0:00:13]} 34. Bf8+ {[%clk 0:00:46]}  Kh5 {[%clk 0:00:13]} 35. Qf4 {[%clk 0:00:45]}  Rf7 {[%clk 0:00:10]} 36. g4+ {[%clk 0:00:39]}  Qxg4 {[%clk 0:00:09]} 37. Qxg4+ {[%clk 0:00:39]}  Kxg4 {[%clk 0:00:10]} 38. f4 {[%clk 0:00:38]}  Nf3+ {[%clk 0:00:09]} 39. Kg2 {[%clk 0:00:38]}  Rh7 {[%clk 0:00:08]} 40. Bd6 {[%clk 0:00:37]}  Rh1 {[%clk 0:00:00]} 41. Kxh1 {[%clk 0:00:37]} 1-0


[Site "https://www.chess.com"]

[Event "Titled Tuesday Blitz May 9 Early 2023"]
[White "Marcziter, Dmitrii"]
[Black "Janaszak, Dawid"]
[WhiteFideId "13900765"]
[BlackFideId "1119206"]
[WhiteElo "2162"]
[BlackElo "2220"]
[Result "0-1"]
[Round "04"]
[TimeControl "180+2"]
[Date "2023.05.09"]
[WhiteClock "0:00:00"]
[BlackClock "0:00:07"]

1. d4 {[%clk 0:03:00]}  d5 {[%clk 0:03:00]} 2. Nf3 {[%clk 0:02:58]}  c5 {[%clk 0:03:00]} 3. e3 {[%clk 0:02:55]}  Nc6 {[%clk 0:03:00]} 4. c4 {[%clk 0:02:54]}  e6 {[%clk 0:02:57]} 5. cxd5 {[%clk 0:02:54]}  exd5 {[%clk 0:02:58]} 6. Nc3 {[%clk 0:02:53]}  Nf6 {[%clk 0:02:58]} 7. Bb5 {[%clk 0:02:52]}  cxd4 {[%clk 0:02:57]} 8. Nxd4 {[%clk 0:02:51]}  Bd7 {[%clk 0:02:56]} 9. O-O {[%clk 0:02:48]}  Bd6 {[%clk 0:02:57]} 10. g3 {[%clk 0:02:44]}  O-O {[%clk 0:02:50]} 11. Re1 {[%clk 0:02:42]}  Qe7 {[%clk 0:02:46]} 12. Bf1 {[%clk 0:02:41]}  Ne5 {[%clk 0:02:44]} 13. Bg2 {[%clk 0:02:39]}  Rad8 {[%clk 0:02:44]} 14. b3 {[%clk 0:02:33]}  Bg4 {[%clk 0:02:36]} 15. f3 {[%clk 0:02:28]}  Bc8 {[%clk 0:02:24]} 16. Ncb5 {[%clk 0:02:26]}  Bb4 {[%clk 0:02:22]} 17. Bd2 {[%clk 0:02:22]}  a6 {[%clk 0:02:20]} 18. Nc3 {[%clk 0:02:16]}  Rfe8 {[%clk 0:02:12]} 19. Na4 {[%clk 0:02:14]}  Nc6 {[%clk 0:01:36]} 20. Nb6 {[%clk 0:02:01]}  Ba3 {[%clk 0:01:23]} 21. Nxc8 {[%clk 0:01:57]}  Rxc8 {[%clk 0:01:22]} 22. Bc3 {[%clk 0:01:43]}  Ne5 {[%clk 0:01:17]} 23. Qd2 {[%clk 0:01:31]}  Qc5 {[%clk 0:01:17]} 24. Ne2 {[%clk 0:01:26]}  Ned7 {[%clk 0:00:50]} 25. b4 {[%clk 0:01:12]}  Qb6 {[%clk 0:00:45]} 26. Rab1 {[%clk 0:01:09]}  Qxe3+ {[%clk 0:00:41]} 27. Qxe3 {[%clk 0:01:01]}  Rxe3 {[%clk 0:00:42]} 28. Rb3 {[%clk 0:00:36]}  d4 {[%clk 0:00:29]} 29. Bxd4 {[%clk 0:00:34]}  Rxb3 {[%clk 0:00:29]} 30. axb3 {[%clk 0:00:34]}  Bxb4 {[%clk 0:00:30]} 31. Rd1 {[%clk 0:00:31]}  Bc5 {[%clk 0:00:28]} 32. f4 {[%clk 0:00:29]}  b5 {[%clk 0:00:26]} 33. Bb7 {[%clk 0:00:27]}  Re8 {[%clk 0:00:26]} 34. Nc3 {[%clk 0:00:17]}  b4 {[%clk 0:00:18]} 35. Na4 {[%clk 0:00:17]}  Bxd4+ {[%clk 0:00:16]} 36. Rxd4 {[%clk 0:00:16]}  a5 {[%clk 0:00:16]} 37. Bc6 {[%clk 0:00:16]}  Re7 {[%clk 0:00:15]} 38. Nb6 {[%clk 0:00:14]}  Nxb6 {[%clk 0:00:10]} 39. Rd8+ {[%clk 0:00:13]}  Ne8 {[%clk 0:00:11]} 40. Bxe8 {[%clk 0:00:13]}  g6 {[%clk 0:00:11]} 41. Rb8 {[%clk 0:00:09]}  Kg7 {[%clk 0:00:08]} 42. Bc6 {[%clk 0:00:07]}  Re1+ {[%clk 0:00:04]} 43. Kf2 {[%clk 0:00:06]}  Rb1 {[%clk 0:00:05]} 44. Rxb6 {[%clk 0:00:05]}  Rb2+ {[%clk 0:00:05]} 45. Kg1 {[%clk 0:00:04]}  Rxb3 {[%clk 0:00:06]} 46. Ra6 {[%clk 0:00:03]}  Rc3 {[%clk 0:00:06]} 47. Bd5 {[%clk 0:00:00]}  Rc5 {[%clk 0:00:07]} 0-1


[Site "https://www.chess.com"]

[Event "Titled Tuesday Blitz May 9 Early 2023"]
[White "Andrews, Todd"]
[Black "Brunner, Nicolas"]
[WhiteFideId "2012456"]
[BlackFideId "620246"]
[WhiteElo "2173"]
[BlackElo "2327"]
[Result "0-1"]
[Round "04"]
[TimeControl "180+2"]
[Date "2023.05.09"]
[WhiteClock "0:00:00"]
[BlackClock "0:00:10"]

1. e4 {[%clk 0:03:00]}  e5 {[%clk 0:02:59]} 2. Nf3 {[%clk 0:03:00]}  Nf6 {[%clk 0:03:00]} 3. d4 {[%clk 0:02:58]}  Nxe4 {[%clk 0:02:58]} 4. Bd3 {[%clk 0:02:56]}  d5 {[%clk 0:02:58]} 5. dxe5 {[%clk 0:02:55]}  Nc5 {[%clk 0:02:33]} 6. O-O {[%clk 0:02:52]}  Be7 {[%clk 0:02:26]} 7. Nc3 {[%clk 0:02:47]}  Nxd3 {[%clk 0:02:15]} 8. Qxd3 {[%clk 0:02:47]}  c6 {[%clk 0:02:15]} 9. Bd2 {[%clk 0:02:38]}  O-O {[%clk 0:02:14]} 10. Rae1 {[%clk 0:02:37]}  Na6 {[%clk 0:02:13]} 11. Nd4 {[%clk 0:02:34]}  Nc5 {[%clk 0:02:08]} 12. Qg3 {[%clk 0:02:33]}  Kh8 {[%clk 0:02:06]} 13. Re2 {[%clk 0:02:21]}  f5 {[%clk 0:01:22]} 14. f4 {[%clk 0:02:15]}  Ne6 {[%clk 0:01:00]} 15. Nf3 {[%clk 0:01:38]}  d4 {[%clk 0:00:59]} 16. Nd1 {[%clk 0:01:37]}  c5 {[%clk 0:00:59]} 17. b3 {[%clk 0:01:33]}  b6 {[%clk 0:00:58]} 18. c4 {[%clk 0:01:21]}  Bb7 {[%clk 0:00:40]} 19. Nf2 {[%clk 0:01:20]}  Qd7 {[%clk 0:00:40]} 20. Nd3 {[%clk 0:01:20]}  Qc6 {[%clk 0:00:39]} 21. Qh3 {[%clk 0:01:14]}  a6 {[%clk 0:00:35]} 22. Nh4 {[%clk 0:01:02]}  Bxh4 {[%clk 0:00:30]} 23. Qxh4 {[%clk 0:01:02]}  b5 {[%clk 0:00:30]} 24. Rf3 {[%clk 0:01:02]}  bxc4 {[%clk 0:00:24]} 25. bxc4 {[%clk 0:01:03]}  Qa4 {[%clk 0:00:19]} 26. Rh3 {[%clk 0:01:03]}  h6 {[%clk 0:00:18]} 27. Be1 {[%clk 0:00:53]}  Qxc4 {[%clk 0:00:17]} 28. Rb2 {[%clk 0:00:44]}  Qd5 {[%clk 0:00:17]} 29. Rg3 {[%clk 0:00:42]}  c4 {[%clk 0:00:15]} 30. Nb4 {[%clk 0:00:41]}  Qe4 {[%clk 0:00:15]} 31. Bf2 {[%clk 0:00:38]}  Nxf4 {[%clk 0:00:14]} 32. Kh1 {[%clk 0:00:25]}  c3 {[%clk 0:00:14]} 33. Rc2 {[%clk 0:00:20]}  a5 {[%clk 0:00:13]} 34. Rxg7 {[%clk 0:00:10]}  Kxg7 {[%clk 0:00:11]} 35. Qg3+ {[%clk 0:00:00]}  Kh7 {[%clk 0:00:10]} 0-1


[Site "https://www.chess.com"]